[Event "*** Titled Tuesday Blitz"]
[Site "Chess.com"]
[Date "2019.12.03"]
[Round "9"]
[White "HarutyunianTigranK"]
[Black "wnstop"]
[Result "1/2-1/2"]
[WhiteElo "2767"]
[BlackElo "2683"]
[TimeControl "180+2"]
[EndTime "15:07:38 PST"]
[Termination "Game drawn by agreement"]

1. Nf3 {[%clk 0:03:01.9]} 1... Nf6 {[%clk 0:03:00.1]} 2. c4 {[%clk 0:03:02.5]}
2... g6 {[%clk 0:03:01.4]} 3. g3 {[%clk 0:03:02.7]} 3... Bg7 {[%clk 0:03:02.8]}
4. Bg2 {[%clk 0:03:04.6]} 4... O-O {[%clk 0:03:04.1]} 5. O-O {[%clk 0:03:06.3]}
5... d6 {[%clk 0:03:05.6]} 6. d4 {[%clk 0:03:07.5]} 6... Nbd7 {[%clk 0:03:06.2]}
7. Nc3 {[%clk 0:03:08.6]} 7... e5 {[%clk 0:03:07.6]} 8. b3 {[%clk 0:03:10.3]}
8... c6 {[%clk 0:03:07]} 9. e4 {[%clk 0:03:10.4]} 9... Re8 {[%clk 0:03:04.2]}
10. Be3 {[%clk 0:03:09.6]} 10... a6 {[%clk 0:03:04.7]} 11. h3 {[%clk 0:02:58.7]}
11... b5 {[%clk 0:03:00.3]} 12. c5 {[%clk 0:02:52.6]} 12... b4 {[%clk
0:02:20.1]} 13. dxe5 {[%clk 0:02:35.3]} 13... bxc3 {[%clk 0:02:07.3]} 14. exf6
{[%clk 0:02:34.1]} 14... Nxf6 {[%clk 0:02:05.3]} 15. e5 {[%clk 0:02:28.6]} 15...
Nd5 {[%clk 0:01:52]} 16. cxd6 {[%clk 0:02:23.5]} 16... Nxe3 {[%clk 0:01:35.6]}
17. fxe3 {[%clk 0:02:23.5]} 17... Bxe5 {[%clk 0:01:19.7]} 18. Nxe5 {[%clk
0:02:23.4]} 18... Rxe5 {[%clk 0:01:21.6]} 19. Qd4 {[%clk 0:02:24.3]} 19... Re6
{[%clk 0:01:18.1]} 20. Bxc6 {[%clk 0:01:56.8]} 20... Rxd6 {[%clk 0:01:12.6]} 21.
Qxc3 {[%clk 0:01:49.1]} 21... Bxh3 {[%clk 0:00:46.5]} 22. Bxa8 {[%clk 0:01:41]}
22... Bxf1 {[%clk 0:00:46.2]} 23. Rxf1 {[%clk 0:01:27.9]} 23... Qxa8 {[%clk
0:00:47.3]} 24. Qc7 {[%clk 0:01:28.4]} 24... Qd5 {[%clk 0:00:47.2]} 25. Rxf7
{[%clk 0:01:15.9]} 25... Qe5 {[%clk 0:00:27.4]} 26. Rg7+ {[%clk 0:01:02.1]}
26... Qxg7 {[%clk 0:00:25.3]} 27. Qxd6 {[%clk 0:00:53.3]} 27... Qa1+ {[%clk
0:00:25.9]} 28. Kg2 {[%clk 0:00:51.8]} 28... Qxa2+ {[%clk 0:00:26.9]} 29. Kh3
{[%clk 0:00:51.2]} 29... Qxb3 {[%clk 0:00:27.2]} 30. Qxa6 {[%clk 0:00:52.1]}
30... Qxe3 {[%clk 0:00:25.7]} 31. Qc8+ {[%clk 0:00:47.5]} 31... Kf7 {[%clk
0:00:21.5]} 32. Qc7+ {[%clk 0:00:48.7]} 32... Qe7 {[%clk 0:00:21.7]} 33. Qf4+
{[%clk 0:00:49.4]} 33... Kg7 {[%clk 0:00:22.1]} 34. Qd4+ {[%clk 0:00:50.4]}
34... Qf6 {[%clk 0:00:23.3]} 35. Qd7+ {[%clk 0:00:50.8]} 35... Kh6 {[%clk
0:00:24.3]} 36. Qd2+ {[%clk 0:00:51.4]} 36... Qg5 {[%clk 0:00:25.3]} 37. Qd6
{[%clk 0:00:47.2]} 37... Qh5+ {[%clk 0:00:25.4]} 38. Kg2 {[%clk 0:00:47.2]}
38... Qe2+ {[%clk 0:00:26.7]} 39. Kh3 {[%clk 0:00:48.1]} 39... Qf1+ {[%clk
0:00:27.5]} 40. Kh2 {[%clk 0:00:49.3]} 40... Qf2+ {[%clk 0:00:28.1]} 41. Kh3
{[%clk 0:00:50.5]} 41... Qf5+ {[%clk 0:00:29.5]} 42. Kh2 {[%clk 0:00:48.8]}
42... Qf3 {[%clk 0:00:19.3]} 43. Qd8 {[%clk 0:00:46]} 43... Qe2+ {[%clk
0:00:16.2]} 44. Kh3 {[%clk 0:00:45.4]} 44... Qe6+ {[%clk 0:00:17]} 45. Kh2
{[%clk 0:00:46]} 45... g5 {[%clk 0:00:16.2]} 46. Qd3 {[%clk 0:00:42.3]} 46...
Qa2+ {[%clk 0:00:15.6]} 47. Kh3 {[%clk 0:00:42.4]} 47... Qe6+ {[%clk 0:00:17.1]}
48. Kh2 {[%clk 0:00:43.4]} 48... Kg7 {[%clk 0:00:17.9]} 49. Qd4+ {[%clk
0:00:43.6]} 49... Kg6 {[%clk 0:00:18.7]} 50. Qd3+ {[%clk 0:00:44.4]} 50... Qf5
{[%clk 0:00:17.3]} 51. Qd6+ {[%clk 0:00:43.6]} 51... Qf6 {[%clk 0:00:18.3]} 52.
Qd3+ {[%clk 0:00:44.1]} 52... Kh6 {[%clk 0:00:19]} 53. g4 {[%clk 0:00:43.3]}
53... Qc6 {[%clk 0:00:10]} 54. Qf5 {[%clk 0:00:40.2]} 54... Qd6+ {[%clk
0:00:08.1]} 55. Kh3 {[%clk 0:00:40.2]} 55... Qa3+ {[%clk 0:00:07]} 56. Kh2
{[%clk 0:00:40.8]} 56... Qb2+ {[%clk 0:00:08.2]} 57. Kh3 {[%clk 0:00:42]} 57...
Qc3+ {[%clk 0:00:09.7]} 58. Kg2 {[%clk 0:00:43]} 58... Qd2+ {[%clk 0:00:10.6]}
59. Kf3 {[%clk 0:00:44]} 59... Qd1+ {[%clk 0:00:10]} 60. Ke4 {[%clk 0:00:45.1]}
60... Qb1+ {[%clk 0:00:10.4]} 61. Ke5 {[%clk 0:00:46.4]} 61... Qb5+ {[%clk
0:00:08.2]} 62. Ke4 {[%clk 0:00:47.7]} 62... Qc4+ {[%clk 0:00:08.7]} 63. Ke5
{[%clk 0:00:48.9]} 63... Qc5+ {[%clk 0:00:09.4]} 64. Ke4 {[%clk 0:00:50.1]}
64... Qc2+ {[%clk 0:00:07]} 1/2-1/2

[Event "*** Titled Tuesday Blitz"]
[Site "Chess.com"]
[Date "2019.12.03"]
[Round "9"]
[White "Nancy11111"]
[Black "PNEPaul"]
[Result "0-1"]
[WhiteElo "2320"]
[BlackElo "1745"]
[TimeControl "180+2"]
[EndTime "15:07:38 PST"]
[Termination "PNEPaul won by checkmate"]

1. d4 {[%clk 0:03:01.9]} 1... a6 {[%clk 0:02:58.7]} 2. Nf3 {[%clk 0:03:02.3]}
2... d6 {[%clk 0:02:59.5]} 3. e4 {[%clk 0:03:03]} 3... g6 {[%clk 0:03:00.6]} 4.
c3 {[%clk 0:03:03.1]} 4... b5 {[%clk 0:03:01.4]} 5. Bd3 {[%clk 0:03:03.7]} 5...
Bb7 {[%clk 0:03:02.4]} 6. O-O {[%clk 0:03:05.2]} 6... Nd7 {[%clk 0:03:03.4]} 7.
Nbd2 {[%clk 0:03:05.5]} 7... Bg7 {[%clk 0:03:04.2]} 8. b3 {[%clk 0:03:06.8]}
8... e6 {[%clk 0:03:05.1]} 9. Bb2 {[%clk 0:03:08.2]} 9... Ne7 {[%clk 0:03:06.2]}
10. c4 {[%clk 0:03:09]} 10... b4 {[%clk 0:03:03.9]} 11. Qc2 {[%clk 0:03:09.4]}
11... O-O {[%clk 0:03:00]} 12. d5 {[%clk 0:03:09.6]} 12... e5 {[%clk 0:02:58.4]}
13. Ne1 {[%clk 0:02:55.5]} 13... h6 {[%clk 0:02:57.8]} 14. f4 {[%clk 0:02:56.1]}
14... f6 {[%clk 0:02:37.9]} 15. f5 {[%clk 0:02:48.9]} 15... g5 {[%clk
0:02:37.5]} 16. g4 {[%clk 0:02:41.3]} 16... Kf7 {[%clk 0:02:19.1]} 17. Be2
{[%clk 0:02:09.4]} 17... Rh8 {[%clk 0:02:18.7]} 18. Kf2 {[%clk 0:02:09.2]} 18...
Qg8 {[%clk 0:02:18.7]} 19. Nef3 {[%clk 0:02:09.5]} 19... Rf8 {[%clk 0:02:18.6]}
20. Rh1 {[%clk 0:02:09.6]} 20... h5 {[%clk 0:02:16.2]} 21. h3 {[%clk 0:02:08.7]}
21... Ke8 {[%clk 0:02:14.7]} 22. Rag1 {[%clk 0:02:07]} 22... Bc8 {[%clk
0:02:09]} 23. Ke1 {[%clk 0:02:07.4]} 23... Qf7 {[%clk 0:02:09]} 24. Kd1 {[%clk
0:02:06.5]} 24... hxg4 {[%clk 0:02:07.3]} 25. h4 {[%clk 0:02:07.2]} 25... gxf3
{[%clk 0:02:06.4]} 26. Nxf3 {[%clk 0:02:05.4]} 26... Bh6 {[%clk 0:01:51.9]} 27.
Bc1 {[%clk 0:02:00.6]} 27... Rfg8 {[%clk 0:01:46]} 28. hxg5 {[%clk 0:01:54.2]}
28... Bxg5 {[%clk 0:01:45]} 29. Nxg5 {[%clk 0:01:54.7]} 29... fxg5 {[%clk
0:01:42.3]} 30. Bg4 {[%clk 0:01:52.3]} 30... Nf6 {[%clk 0:01:35.6]} 31. Be2
{[%clk 0:01:32.5]} 31... g4 {[%clk 0:01:29.7]} 32. Rxh8 {[%clk 0:01:32.2]} 32...
Rxh8 {[%clk 0:01:28.8]} 33. Bg5 {[%clk 0:01:33.7]} 33... Rh2 {[%clk 0:01:21.2]}
34. Qd2 {[%clk 0:01:26]} 34... Nxe4 {[%clk 0:01:18.3]} 35. Qe3 {[%clk
0:01:22.8]} 35... Nxg5 {[%clk 0:01:04.1]} 36. Qxg5 {[%clk 0:01:14.4]} 36... Qh5
{[%clk 0:01:02.6]} 37. Qg7 {[%clk 0:01:07.2]} 37... Qxf5 {[%clk 0:00:50.4]} 38.
Rxg4 {[%clk 0:00:59.2]} 38... Rxe2 {[%clk 0:00:31.3]} 39. Qh8+ {[%clk
0:00:53.9]} 39... Kd7 {[%clk 0:00:30.6]} 40. Kxe2 {[%clk 0:00:52.7]} 40... Qxg4+
{[%clk 0:00:31.1]} 41. Kd2 {[%clk 0:00:54]} 41... Qg5+ {[%clk 0:00:30.6]} 42.
Kc2 {[%clk 0:00:53.2]} 42... Qf5+ {[%clk 0:00:29.7]} 43. Kb2 {[%clk 0:00:54]}
43... Qf2+ {[%clk 0:00:29.8]} 44. Kb1 {[%clk 0:00:55]} 44... Qe1+ {[%clk
0:00:30.4]} 45. Kb2 {[%clk 0:00:55.6]} 45... Qc3+ {[%clk 0:00:31]} 46. Kb1
{[%clk 0:00:56.6]} 46... e4 {[%clk 0:00:31.6]} 47. Qh3+ {[%clk 0:00:53.9]} 47...
Ke8 {[%clk 0:00:28.9]} 48. Qh5+ {[%clk 0:00:54.3]} 48... Kf8 {[%clk 0:00:29]}
49. Qh6+ {[%clk 0:00:54.1]} 49... Kf7 {[%clk 0:00:29.4]} 50. Qh5+ {[%clk
0:00:52.3]} 50... Kf6 {[%clk 0:00:28.1]} 51. Qh6+ {[%clk 0:00:48.5]} 51... Ke5
{[%clk 0:00:27]} 52. a4 {[%clk 0:00:45.8]} 52... Qxb3+ {[%clk 0:00:26.4]} 53.
Kc1 {[%clk 0:00:46.8]} 53... Qxc4+ {[%clk 0:00:24.5]} 54. Kd2 {[%clk 0:00:46.9]}
54... Qxd5+ {[%clk 0:00:24.9]} 55. Kc2 {[%clk 0:00:48]} 55... Qd3+ {[%clk
0:00:25.5]} 56. Kb2 {[%clk 0:00:49]} 56... Be6 {[%clk 0:00:25.6]} 57. Qg7+
{[%clk 0:00:41.5]} 57... Kd5 {[%clk 0:00:24.6]} 58. Qxe7 {[%clk 0:00:42.6]}
58... Qc3+ {[%clk 0:00:23.1]} 59. Kb1 {[%clk 0:00:43.7]} 59... b3 {[%clk
0:00:22.5]} 60. Qg5+ {[%clk 0:00:39.4]} 60... Kc6 {[%clk 0:00:23.1]} 61. Qg2
{[%clk 0:00:40.5]} 61... Qc2+ {[%clk 0:00:22.4]} 62. Qxc2+ {[%clk 0:00:41.5]}
62... bxc2+ {[%clk 0:00:23.2]} 63. Kxc2 {[%clk 0:00:43.4]} 63... Kc5 {[%clk
0:00:24.3]} 64. Kd2 {[%clk 0:00:43.8]} 64... Kb4 {[%clk 0:00:25.1]} 65. Ke3
{[%clk 0:00:45.2]} 65... d5 {[%clk 0:00:26.3]} 66. Kd4 {[%clk 0:00:46.1]} 66...
Kxa4 {[%clk 0:00:27.2]} 67. Kc5 {[%clk 0:00:46.6]} 67... e3 {[%clk 0:00:27.3]}
68. Kc6 {[%clk 0:00:48]} 68... e2 {[%clk 0:00:28.3]} 69. Kb7 {[%clk 0:00:49.6]}
69... e1=Q {[%clk 0:00:28.8]} 70. Ka8 {[%clk 0:00:51.5]} 70... Qb4 {[%clk
0:00:28.3]} 71. Ka7 {[%clk 0:00:52.6]} 71... d4 {[%clk 0:00:29.1]} 72. Ka8
{[%clk 0:00:52.8]} 72... Bd5+ {[%clk 0:00:30.2]} 73. Ka7 {[%clk 0:00:53.4]}
73... Qb7# {[%clk 0:00:31.3]} 0-1

[Event "*** Titled Tuesday Blitz"]
[Site "Chess.com"]
[Date "2019.12.03"]
[Round "9"]
[White "LimeInTheCoconut"]
[Black "WorldChampionBulletChess"]
[Result "1-0"]
[WhiteElo "2345"]
[BlackElo "2107"]
[TimeControl "180+2"]
[EndTime "15:07:43 PST"]
[Termination "LimeInTheCoconut won on time"]

1. Nf3 {[%clk 0:03:01.9]} 1... d5 {[%clk 0:02:40.6]} 2. e3 {[%clk 0:02:57.9]}
2... Nc6 {[%clk 0:02:40.5]} 3. Bb5 {[%clk 0:02:51.4]} 3... Nf6 {[%clk
0:02:29.5]} 4. Bxc6+ {[%clk 0:02:50.3]} 4... bxc6 {[%clk 0:02:31.4]} 5. d3
{[%clk 0:02:50.5]} 5... Qd6 {[%clk 0:02:30.8]} 6. O-O {[%clk 0:02:49.9]} 6... e5
{[%clk 0:02:30.1]} 7. b3 {[%clk 0:02:46.8]} 7... Be7 {[%clk 0:02:29.8]} 8. Bb2
{[%clk 0:02:46.1]} 8... Nd7 {[%clk 0:02:29.2]} 9. e4 {[%clk 0:02:45.7]} 9... d4
{[%clk 0:02:21.4]} 10. Nbd2 {[%clk 0:02:34.1]} 10... Nb6 {[%clk 0:02:08.8]} 11.
a4 {[%clk 0:02:34]} 11... a5 {[%clk 0:02:09.4]} 12. Re1 {[%clk 0:02:26.3]} 12...
O-O {[%clk 0:02:00.5]} 13. Nf1 {[%clk 0:02:27.2]} 13... Bg4 {[%clk 0:01:37.7]}
14. h3 {[%clk 0:02:27]} 14... Bh5 {[%clk 0:01:37.8]} 15. Ng3 {[%clk 0:02:23.3]}
15... Bg6 {[%clk 0:01:36.9]} 16. Ba3 {[%clk 0:02:17.5]} 16... Qe6 {[%clk
0:01:34.6]} 17. Bxe7 {[%clk 0:02:17.6]} 17... Qxe7 {[%clk 0:01:36.5]} 18. Qd2
{[%clk 0:02:13.6]} 18... Nd7 {[%clk 0:01:17.7]} 19. Rf1 {[%clk 0:02:12.5]} 19...
h5 {[%clk 0:00:46.7]} 20. Nh2 {[%clk 0:02:08.5]} 20... h4 {[%clk 0:00:41.8]} 21.
Nh1 {[%clk 0:02:02.8]} 21... f5 {[%clk 0:00:42.4]} 22. exf5 {[%clk 0:02:00.2]}
22... Rxf5 {[%clk 0:00:40.9]} 23. Rae1 {[%clk 0:02:02.1]} 23... Raf8 {[%clk
0:00:37.2]} 24. f3 {[%clk 0:02:02.3]} 24... Nf6 {[%clk 0:00:26.2]} 25. Ng4
{[%clk 0:01:53.9]} 25... Nd5 {[%clk 0:00:17.9]} 26. Qxa5 {[%clk 0:01:43.8]}
26... Ne3 {[%clk 0:00:15.2]} 27. Nxe3 {[%clk 0:01:42.4]} 27... dxe3 {[%clk
0:00:17.1]} 28. Qc3 {[%clk 0:01:29.5]} 28... Qg5 {[%clk 0:00:17.5]} 29. Qc5
{[%clk 0:00:57.5]} 29... e4 {[%clk 0:00:13.7]} 30. Qxe3 {[%clk 0:00:58.1]} 30...
exf3 {[%clk 0:00:14.6]} 31. Qxg5 {[%clk 0:00:53.8]} 31... Rxg5 {[%clk
0:00:16.5]} 32. Rf2 {[%clk 0:00:51.4]} 32... Bh5 {[%clk 0:00:09.1]} 33. Re4
{[%clk 0:00:48.2]} 33... Rf6 {[%clk 0:00:08.8]} 34. Rxh4 {[%clk 0:00:46.1]}
34... Re6 {[%clk 0:00:03.9]} 35. Re4 {[%clk 0:00:46.7]} 35... Reg6 {[%clk
0:00:05]} 36. g4 {[%clk 0:00:46.5]} 36... Bxg4 {[%clk 0:00:06.1]} 37. Rxg4
{[%clk 0:00:46.6]} 37... Rxg4+ {[%clk 0:00:08]} 38. hxg4 {[%clk 0:00:48.5]}
38... Rxg4+ {[%clk 0:00:09.9]} 39. Kf1 {[%clk 0:00:47.4]} 39... Rh4 {[%clk
0:00:11.8]} 40. Ng3 {[%clk 0:00:47.9]} 40... Rf4 {[%clk 0:00:11.2]} 41. Ke1
{[%clk 0:00:46.8]} 41... g5 {[%clk 0:00:12.2]} 42. Kd2 {[%clk 0:00:48]} 42... g4
{[%clk 0:00:13.8]} 43. Ke3 {[%clk 0:00:49.1]} 43... Rf7 {[%clk 0:00:14.4]} 44.
Rh2 {[%clk 0:00:49.3]} 44... Re7+ {[%clk 0:00:13.2]} 45. Kf2 {[%clk 0:00:47]}
45... c5 {[%clk 0:00:10.1]} 46. Rh4 {[%clk 0:00:48.4]} 46... Rg7 {[%clk
0:00:10]} 47. Nf5 {[%clk 0:00:49.6]} 47... Rg5 {[%clk 0:00:11.5]} 48. Rxg4
{[%clk 0:00:51.2]} 48... Rxg4 {[%clk 0:00:10.9]} 49. Nh6+ {[%clk 0:00:52.4]}
49... Kg7 {[%clk 0:00:12.6]} 50. Nxg4 {[%clk 0:00:54.3]} 50... Kg6 {[%clk
0:00:13.6]} 51. Kxf3 {[%clk 0:00:55.7]} 51... Kf5 {[%clk 0:00:15.5]} 52. Ne3+
{[%clk 0:00:56.2]} 52... Ke6 {[%clk 0:00:17.4]} 53. Ke4 {[%clk 0:00:56.6]} 53...
Kd6 {[%clk 0:00:18.4]} 54. Nf5+ {[%clk 0:00:56.6]} 54... Kc6 {[%clk 0:00:20.3]}
55. Ke5 {[%clk 0:00:57.8]} 55... Kb6 {[%clk 0:00:22.2]} 56. Kd5 {[%clk
0:00:59.1]} 56... Ka5 {[%clk 0:00:24.1]} 57. Kxc5 {[%clk 0:00:59.3]} 57... c6
{[%clk 0:00:26]} 58. Kxc6 {[%clk 0:01:00.1]} 58... Kb4 {[%clk 0:00:27.9]} 59. d4
{[%clk 0:01:01.1]} 59... Kc3 {[%clk 0:00:29.8]} 60. d5 {[%clk 0:01:02.5]} 60...
Kb2 {[%clk 0:00:31.5]} 61. b4 {[%clk 0:01:03.7]} 61... Kc3 {[%clk 0:00:33.4]}
62. b5 {[%clk 0:01:05.3]} 62... Kb2 {[%clk 0:00:35.3]} 63. a5 {[%clk 0:01:06.7]}
63... Kc1 {[%clk 0:00:37.2]} 64. b6 {[%clk 0:01:08.3]} 64... Kd2 {[%clk
0:00:39.1]} 65. c4 {[%clk 0:01:10]} 65... Kd1 {[%clk 0:00:41]} 66. c5 {[%clk
0:01:11.9]} 66... Ke1 {[%clk 0:00:42.9]} 67. d6 {[%clk 0:01:13.8]} 67... Kf2
{[%clk 0:00:44.8]} 68. a6 {[%clk 0:01:15.5]} 68... Kg2 {[%clk 0:00:46.7]} 69. a7
{[%clk 0:01:17.4]} 69... Kg1 {[%clk 0:00:48.6]} 70. b7 {[%clk 0:01:19.3]} 70...
Kf1 {[%clk 0:00:50.5]} 71. a8=Q {[%clk 0:01:20.3]} 71... Kg1 {[%clk 0:00:52.4]}
72. b8=Q {[%clk 0:01:21.9]} 72... Kh1 {[%clk 0:00:54.3]} 73. Qb2 {[%clk
0:01:21.3]} 73... Kg1 {[%clk 0:00:55.4]} 74. d7 {[%clk 0:01:22.5]} 74... Kh1
{[%clk 0:00:57.3]} 75. d8=Q {[%clk 0:01:23]} 1-0

[Event "*** Titled Tuesday Blitz"]
[Site "Chess.com"]
[Date "2019.12.03"]
[Round "9"]
[White "VladimirBelous"]
[Black "Konavets"]
[Result "0-1"]
[WhiteElo "2755"]
[BlackElo "2907"]
[TimeControl "180+2"]
[EndTime "15:07:44 PST"]
[Termination "Konavets won by resignation"]

1. c4 {[%clk 0:03:01.9]} 1... e6 {[%clk 0:03:00.8]} 2. Nf3 {[%clk 0:03:02.6]}
2... d5 {[%clk 0:03:02.7]} 3. b3 {[%clk 0:03:00.5]} 3... d4 {[%clk 0:03:03]} 4.
g3 {[%clk 0:02:58.7]} 4... c5 {[%clk 0:03:04.2]} 5. Bg2 {[%clk 0:03:00.6]} 5...
Nc6 {[%clk 0:03:06.1]} 6. O-O {[%clk 0:03:02.5]} 6... Nf6 {[%clk 0:03:07.1]} 7.
e3 {[%clk 0:03:04]} 7... Be7 {[%clk 0:03:07.9]} 8. exd4 {[%clk 0:03:05.4]} 8...
cxd4 {[%clk 0:03:09.8]} 9. Re1 {[%clk 0:03:06.7]} 9... O-O {[%clk 0:03:11.4]}
10. Bb2 {[%clk 0:02:59.5]} 10... Re8 {[%clk 0:03:11.4]} 11. Ne5 {[%clk
0:02:55.9]} 11... Nxe5 {[%clk 0:03:11.5]} 12. Rxe5 {[%clk 0:02:57.8]} 12... Bd6
{[%clk 0:03:11.8]} 13. Bxd4 {[%clk 0:02:58.4]} 13... Bxe5 {[%clk 0:03:13.2]} 14.
Bxe5 {[%clk 0:03:00.3]} 14... Nd7 {[%clk 0:03:14.9]} 15. Bc3 {[%clk 0:02:59.1]}
15... e5 {[%clk 0:03:16.4]} 16. Na3 {[%clk 0:02:58]} 16... Nc5 {[%clk
0:03:17.8]} 17. d4 {[%clk 0:02:48]} 17... exd4 {[%clk 0:03:17.2]} 18. Bxd4
{[%clk 0:02:49.6]} 18... Ne4 {[%clk 0:03:11.3]} 19. Be3 {[%clk 0:02:13.6]} 19...
Qxd1+ {[%clk 0:03:07]} 20. Rxd1 {[%clk 0:02:15.5]} 20... Nc3 {[%clk 0:03:08.5]}
21. Rd6 {[%clk 0:02:05.8]} 21... a6 {[%clk 0:03:05.7]} 22. c5 {[%clk 0:02:00.7]}
22... Nb5 {[%clk 0:02:59.6]} 23. Nxb5 {[%clk 0:01:59.3]} 23... axb5 {[%clk
0:03:01.5]} 24. Bf1 {[%clk 0:01:50]} 24... Rxa2 {[%clk 0:03:00.9]} 25. Kg2
{[%clk 0:01:51.5]} 25... h5 {[%clk 0:02:52.4]} 26. Bd4 {[%clk 0:01:45.1]} 26...
Be6 {[%clk 0:02:25.3]} 27. Bxb5 {[%clk 0:01:42.2]} 27... Rc8 {[%clk 0:02:19.4]}
28. b4 {[%clk 0:01:41.8]} 28... Rd2 {[%clk 0:02:19.9]} 29. Be3 {[%clk
0:01:30.8]} 29... Rxd6 {[%clk 0:02:18.6]} 30. cxd6 {[%clk 0:01:32.7]} 30... Rd8
{[%clk 0:02:12.4]} 31. d7 {[%clk 0:01:28.6]} 31... Bd5+ {[%clk 0:02:13.2]} 32.
Kh3 {[%clk 0:01:17.7]} 32... Bc6 {[%clk 0:02:13.9]} 33. Be2 {[%clk 0:01:18.3]}
33... Bxd7+ {[%clk 0:02:14.3]} 34. Kh4 {[%clk 0:01:19.2]} 34... g6 {[%clk
0:02:15.7]} 35. Kg5 {[%clk 0:01:19.9]} 35... Re8 {[%clk 0:02:16.7]} 36. Bd3
{[%clk 0:01:10.2]} 36... Bb5 {[%clk 0:02:09.1]} 37. Bc2 {[%clk 0:01:00.4]} 37...
Rc8 {[%clk 0:02:09.4]} 38. Be4 {[%clk 0:01:01.2]} 38... Bc6 {[%clk 0:02:10]} 39.
Bd3 {[%clk 0:00:55.6]} 39... Rd8 {[%clk 0:02:11.1]} 40. Bc4 {[%clk 0:00:54.4]}
40... Bd5 {[%clk 0:02:12.2]} 41. Bb5 {[%clk 0:00:42.9]} 41... Be6 {[%clk
0:02:08.6]} 42. Kf6 {[%clk 0:00:42.6]} 42... Rd5 {[%clk 0:02:09.5]} 43. Be2
{[%clk 0:00:40.9]} 43... Bg4 {[%clk 0:01:50.9]} 44. Bc4 {[%clk 0:00:38.5]} 44...
Rd6+ {[%clk 0:01:52.1]} 45. Ke7 {[%clk 0:00:38.7]} 45... Rd7+ {[%clk 0:01:53.5]}
46. Ke8 {[%clk 0:00:34.9]} 46... Rc7 {[%clk 0:01:52.1]} 47. Bd5 {[%clk
0:00:34.1]} 47... Be6 {[%clk 0:01:45.2]} 48. Be4 {[%clk 0:00:35.3]} 48... Rc4
{[%clk 0:01:39.4]} 49. Bxb7 {[%clk 0:00:34.6]} 49... Rxb4 {[%clk 0:01:40.8]} 50.
Bc6 {[%clk 0:00:35.1]} 50... Rc4 {[%clk 0:01:40.5]} 51. Bb7 {[%clk 0:00:35.7]}
51... Rc7 {[%clk 0:01:41.1]} 52. Be4 {[%clk 0:00:36]} 52... Kg7 {[%clk
0:01:40.5]} 53. h4 {[%clk 0:00:37.4]} 53... f6 {[%clk 0:01:39.6]} 54. Kd8 {[%clk
0:00:33.1]} 54... Rd7+ {[%clk 0:01:40.9]} 55. Ke8 {[%clk 0:00:34.4]} 55... Rc7
{[%clk 0:01:38.8]} 56. Kd8 {[%clk 0:00:35.1]} 56... Rc8+ {[%clk 0:01:40.2]} 57.
Ke7 {[%clk 0:00:36.3]} 57... Bf7 {[%clk 0:01:41]} 58. Kd7 {[%clk 0:00:32.4]}
58... Re8 {[%clk 0:01:40.2]} 59. Bf3 {[%clk 0:00:31.2]} 59... Re5 {[%clk
0:01:40.4]} 60. Bd4 {[%clk 0:00:29.9]} 60... Re1 {[%clk 0:01:41.4]} 61. Kd6
{[%clk 0:00:29.1]} 61... Re8 {[%clk 0:01:39.5]} 62. Bc6 {[%clk 0:00:29.5]} 62...
Rd8+ {[%clk 0:01:40.1]} 63. Kc5 {[%clk 0:00:28.1]} 63... Be6 {[%clk 0:01:41.2]}
64. Be4 {[%clk 0:00:26.8]} 64... Kf7 {[%clk 0:01:42.4]} 65. Bb1 {[%clk 0:00:26]}
65... Rc8+ {[%clk 0:01:42.1]} 66. Kd6 {[%clk 0:00:25.9]} 66... Rc4 {[%clk
0:01:40.8]} 67. Be3 {[%clk 0:00:24.2]} 67... f5 {[%clk 0:01:33.7]} 68. Ke5
{[%clk 0:00:23.9]} 68... Ra4 {[%clk 0:01:31.8]} 69. Bc2 {[%clk 0:00:22.3]} 69...
Ra2 {[%clk 0:01:32.2]} 70. Bd3 {[%clk 0:00:23.1]} 70... Ra3 {[%clk 0:01:33.5]}
71. Bc2 {[%clk 0:00:22.9]} 71... Bb3 {[%clk 0:01:34.5]} 72. Bd3 {[%clk
0:00:21.6]} 72... Ra5+ {[%clk 0:01:35.6]} 73. Kf4 {[%clk 0:00:22.7]} 73... Kg7
{[%clk 0:01:34.7]} 74. Kg5 {[%clk 0:00:22.8]} 74... Kh7 {[%clk 0:01:34.2]} 75.
Be2 {[%clk 0:00:22.4]} 75... Bc2 {[%clk 0:01:31.9]} 76. Kf4 {[%clk 0:00:18.6]}
76... Kg7 {[%clk 0:01:31.7]} 77. Bc4 {[%clk 0:00:19.6]} 77... Ra4 {[%clk
0:01:29.3]} 0-1